{"text_format":"3","workbook":"xlsx","n_sheets":4,"sheets":["FORMULAIRE","Données","Feuil3","DOCUMENTATION"],"not_rendered":{"images":6,"macros":1,"external_links":1,"defined_names":25,"comments":1},"read":"whole","date_system":"1900"}

{"sheet":"FORMULAIRE","index":0,"n_rows":245,"n_cols":11,"rows_kept":245,"merged":[[1,9,1,11],[3,0,3,11],[5,0,5,11],[7,0,7,11],[8,0,8,11],[10,1,10,2],[10,3,10,4],[10,8,10,10],[11,8,11,10],[12,1,12,3],[12,5,12,7],[12,9,12,10],[14,1,14,10],[16,2,16,3],[16,5,16,6],[16,8,16,10],[18,0,18,1],[18,4,18,5],[18,8,18,9],[20,4,20,6],[20,8,20,10],[22,0,22,11],[24,0,24,3],[27,1,27,4],[27,6,27,9],[32,0,32,10],[33,0,33,10],[36,0,36,1],[36,2,36,5],[36,6,36,8],[38,2,38,9],[40,0,40,2],[40,3,40,5],[42,3,43,4],[42,5,43,5],[42,9,43,9],[48,1,48,10],[50,2,50,4],[50,7,50,8],[54,0,54,11],[55,0,55,10],[56,0,56,10],[58,1,58,3],[58,5,58,10],[61,3,61,4],[62,2,62,3],[62,7,62,8],[63,1,65,1],[63,2,63,3],[63,5,64,5],[63,6,65,6],[63,7,63,8],[63,10,64,10],[64,2,64,3],[64,7,64,8],[65,2,65,3],[65,7,65,8],[69,1,69,3],[69,5,69,6],[69,8,69,10],[70,2,70,3],[70,9,70,10],[71,1,71,3],[71,5,71,6],[71,8,71,10],[72,2,72,3],[72,9,72,10],[74,3,74,4],[80,1,80,4],[80,7,80,8],[85,1,85,10],[87,2,87,6],[92,1,92,10],[94,3,94,5],[94,7,94,8],[98,0,98,11],[99,0,99,10],[100,0,100,10],[102,0,102,2],[102,5,102,7],[102,9,102,10],[103,0,103,1],[103,2,103,4],[103,5,103,10],[104,1,104,4],[104,6,104,7],[104,8,104,9],[106,0,106,1],[106,5,106,8],[108,2,108,6],[112,1,112,4],[113,3,113,4],[118,0,118,10],[120,5,120,6],[121,0,130,0],[121,1,121,2],[121,6,121,7],[126,5,126,6],[127,1,127,2],[127,6,127,7],[131,5,131,6],[133,3,133,5],[135,0,135,10],[140,1,140,10],[142,3,142,5],[142,7,142,8],[145,0,145,11],[146,0,146,11],[148,0,148,11],[151,2,151,3],[151,6,151,8],[153,2,153,3],[153,7,153,9],[155,2,155,3],[157,2,157,3],[159,1,159,3],[159,7,159,9],[162,5,162,6],[163,1,163,2],[163,6,163,7],[167,5,167,6],[168,1,168,2],[168,6,168,7],[173,3,173,5],[175,0,175,10],[178,0,178,11],[179,0,179,11],[181,0,181,10],[184,4,184,5],[184,6,184,7],[187,0,187,1],[187,2,187,4],[194,0,194,10],[198,1,198,2],[198,3,198,4],[198,5,198,6],[198,7,198,8],[199,8,199,9],[203,0,203,10],[205,4,207,5],[206,1,206,3],[206,6,209,10],[214,0,214,11],[215,1,215,11],[216,0,217,11],[219,0,222,11],[225,1,225,2],[225,7,225,8],[226,0,231,4],[226,5,230,10],[232,0,232,10],[233,0,233,11],[235,1,235,4],[235,6,235,7],[239,6,239,7],[244,7,246,9]]}
[]
[{"$nulls":9},"FEC-CSQ OU FNEEQ-CSN"]
[]
["FORMULAIRE DE PERFECTIONNEMENT ET DE RECYCLAGE 2022-2023"]
[]
["PARTIE I (À compléter par l'enseignante ou l'enseignant)"]
[]
["*Tous les champs sont obligatoires"]
["IDENTIFICATION"]
[]
["Nom du collège :","Choisissez votre collège",null,"Affiliation syndicale : ",null,{"$f":"VLOOKUP(B11,TabColl_AffSynd,2,FALSE)","v":" "},null,"Type de recyclage :"]
[]
["Nom :",{"$nulls":3},"Prénom :",{"$nulls":3},"Statut :"]
[{"$nulls":9},{"$f":"IF(AND(J13=\"Non permanent\",I11=\"Programme révisé ou réorientation de carrière\"),\"VOUS N'ÊTES PAS ADMISSIBLE À UNE DEMANDE DE RECYCLAGES POUR LE PROGRAMME TECHNIQUE\",\"  \")","v":"  "}]
["Adresse permanente :"]
[]
["Téléphone :","Résidence :",null,null,"Travail :",null,null,"Courriel :"]
[]
["Nombre d'années d'ancienneté au dernier jour de l'année d'engagement 2021-2022 :",{"$nulls":3},"Nombre d'années d'expérience au dernier jour de l'année d'engagement 2021-2022 :",{"$nulls":3},"Échelon au dernier jour de l'année d'engagement 2021-2022 :"]
[]
["Discipline au moment du dépôt du projet  de perfectionnement :",null,null,1,{"$nulls":3},2]
[]
["SCOLARITÉ"]
[]
["Nombre d'années de scolarité au dernier jour de l'année d'engagement 2021-2022 :",{"$nulls":5},{"$f":"IFERROR(\"\",\"VOUS DEVEZ REMPLIR LA CELLULE PRÉCÉDENTE\")","v":""}]
[]
["Formation universitaire :",{"$nulls":4},"Formation collégiale :"]
["Champs d'études :",{"$nulls":4},"Champs d'études :"]
["Année d'obtention :",{"$nulls":4},"Année d'obtention :"]
[]
[]
[]
["RECYCLAGE VERS POSTE RÉSERVÉ\n(dans le collège : FEC-CSQ = clause 5-4.20 et FNEEQ-CSN = clause 5-4.21 / dans un autre collège : FEC-CSQ = clause 5-4.21 et FNEEQ-CSN = clause 5-4.22)"]
[]
["Cette section s'adresse uniquement aux enseignantes et enseignants mis en disponibilité ou par substitution"]
[]
["Nouvelle discipline du poste réservé visée par le recyclage :",{"$nulls":5},"Titre du programme de formation prévu :"]
[]
["Description du programme de formation :"]
[]
["Nom de l'établissement d'enseignement  qui dispense la formation :"]
[]
["DURÉE DU PROGRAMME DE FORMATION",null,null,"Nombre de sessions :",{"$nulls":5},{"$f":"F43*0.5","v":{"v":0,"d":"0.0000"}}]
["Maximum 8 sessions : 1 session = 0,50 ETC / 2 sessions = 1 ETC",{"$nulls":7},"ETC visés :"]
[]
[]
["ENGAGEMENT "]
[]
[null,"Je m'engage à occuper le poste réservé pendant une durée équivalente à la durée du recyclage ou, à défaut, rembourser \n(voir FEC-CSQ : clauses 5-4.20 F), 5-4.21 J) et FNEEQ-CSN : clauses 5-4.21 G), et 5-4.22 J)."]
[]
["Inscrire nom et prénom de l'enseignante ",{"$nulls":5},"Date :"]
["ou de l'enseignant :"]
[]
[]
["PARTIE I (suite) À compléter par l'enseignante ou l'enseignant)"]
["RECYCLAGE LIÉ À LA RÉVISION D'UN PROGRAMME OU À UNE RÉORIENTATION DE CARRIÈRE (FEC-CSQ)\n (Pour les collèges FEC-CSQ dont le syndicat était antérieurement affilié à la FAC) (FEC-CSQ = clause 5-4.25 de l'Annexe  X-1) uniquement pour les collèges dont le syndicat était antérieurement affilié à la FAC"]
[]
[]
["Titre du programme révisé :",{"$nulls":3},"Précisez :"]
[]
["DURÉE DU STAGE OU DES COURS"]
["Année 2022-2023","Automne","Session 1",{"$f":"IF(OR(F68>0,F79>0),1,\"  \")","v":"  "},{"$nulls":3},"Hiver","Session 2",{"$f":"IF(OR(K68>0,K79>0),1,\"  \")","v":"  "}]
[null,"Stage","Nombre de jours par session",{"$nulls":3},"Stage","Nombre de jours par session"]
[null,"1 jour/semaine=0,10 ETC \n(pour 15 semaines)","OU",null,null,{"$f":"(E65*E66)+E63","v":0},"1 jour/semaine=0,10 ETC \n(pour 15 semaines)","OU",null,null,{"$f":"(J65*J66)+J63","v":0}]
["STAGES",null,"Nombre de semaines",{"$nulls":4},"Nombre de semaines"]
[null,null,"Nombre de jours par semaine",{"$nulls":4},"Nombre de jours par semaine"]
[null,{"$f":"0.1/15","v":{"v":0.006666666666666667,"d":"0.0067"}},{"$nulls":4},{"$f":"0.1/15","v":{"v":0.006666666666666667,"d":"0.0067"}}]
[{"$nulls":4},"ETC visé :",{"$f":"F64*B67","v":{"v":0,"d":"0.0000"}},{"$nulls":3},"ETC visé :",{"$f":"K64*G67","v":{"v":0,"d":"0.0000"}}]
[]
["Cours 1 :",{"$nulls":3},"Cours 2 :",null,null,"Cours 3 :"]
[null,"Nombre d'heures :",{"$nulls":3},"Nombre d'heures :",null,null,"Nombre d'heures :"]
["Cours 4 :",{"$nulls":3},"Cours 5 :",null,null,"Cours 6 :"]
[null,"Nombre d'heures :",{"$nulls":3},"Nombre d'heures :",null,null,"Nombre d'heures :"]
[]
[null,"Automne","Session 1",{"$nulls":4},"Hiver","Session 2"]
[null,"Cours",null,"Nombre de cours :",null,null,"Cours",null,"Nombre de cours :"]
["COURS","45 heures = 0,10 ETC",null,"Nombre total d'heures :",null,null,"45 heures = 0,10 ETC",null,"Nombre total d'heures :"]
[]
[{"$nulls":4},"ETC visé :",{"$f":"E77/45*0.1","v":{"v":0,"d":"0.0000"}},{"$nulls":3},"ETC visé :",{"$f":"J77/45*0.1","v":{"v":0,"d":"0.0000"}}]
[]
["Lieu de formation :",{"$nulls":4},"Nombre d'ETC visés : ",{"$f":"F68+F79+K68+K79","v":{"v":0,"d":"0.0000"}},"Nombre de sessions :",null,{"$f":"SUM(D62:J62)","v":0}]
[]
[]
[]
["NOUVELLE COMPÉTENCE VISÉE PAR LE RECYCLAGE ET ENSEIGNÉE AU COLLÈGE"]
["Objectif poursuivi :"]
[]
["Lien avec la révision du programme :"]
[]
[]
["ENGAGEMENT "]
[]
[null,"Je m'engage à fournir une prestation de services à mon collège pour une durée équivalente au prorata de l'équivalent temps complet (ETC) accordé."]
[]
["Inscrire nom et prénom de l'enseignante ou de l'enseignant :",{"$nulls":5},"Date :"]
[]
[]
[]
["PARTIE I (suite) À compléter par l'enseignante ou l'enseignant)"]
["FORMATION POUR L'OBTENTION D'UN DIPLÔME DE MAÎTRISE \n(FEC-CSQ = clause 5-4.20 C) 3e paragraphe, clause 6-3.01 5e paragraphe et article 7-6.00  FNEEQ-CSN = clause 5-4.21 C) 4e paragraphe, 6-3.01, 4e paragraphe et article 7-6.00)"]
[]
["Question 1 : Déteniez-vous 19 années de scolarité :",{"$nulls":4},"Question 2 : Étiez-vous à l'échelon 17 :"]
[". en 2005-2006, si vous êtes présentement à l'emploi d'un collège            FNEEQ-CSN? ou\n. en 2015-2016, si vous êtes présentement à l'emploi d'un collège FEC-CSQ? ou\n. en 2009-2010, si vous êtes présentement à l'emploi d'un collège FEC-CSQ (anciennement FAC)?",{"$nulls":4},". en 2005-2006, si vous êtes présentement à l'emploi d'un collège FNEEQ-CSN? ou \n. en 2015-2016, si vous êtes présentement à l'emploi d'un collège FEC-CSQ? ou \n. en 2009-2010, si vous êtes présentement à l'emploi d'un collège FEC-CSQ (anciennement FAC)?  "]
[]
["Titre du diplôme :",{"$nulls":5},"Champ de spécialisation : "]
[]
["Nombre total de crédits du programme visé :\n(incluant stages et mémoire) ",{"$nulls":4},"Nombre de crédits déjà accumulés dans le programme de formation :\n(incluant ceux en cours)"]
[]
["Nom de l'établissement d'enseignement :"]
[]
["RÉGIME D'ÉTUDES"]
[]
["Échelle de calcul des crédits :","3 crédits = 0,10 ETC;     15 crédits = 0,50 ETC; \n30 crédits = 1 ETC;   36 crédits = 1,20 ETC;    45 crédits = 1,50 ETC",{"$nulls":4},"Nombre de crédits à compléter : ",{"$f":"C107-J107","v":0},"ETC visés :",{"$f":"H113/3*0.1","v":{"v":0,"d":"0.0000"}}]
[]
[]
[]
[]
["DURÉE DU PROGRAMME"]
["(maximum 4 sessions, à l'exception de l'enseignante ou l'enseignant qui ne peut poursuivre des études à temps complet en continu, compte tenu de la disponibilité de la formation)"]
["Nombre de sessions "]
[{"$nulls":5},"Année 2022-2023"]
["Choisissez les sessions désirées","Session 1",null,"A-2022",null,null,"Session 2",null,"H-2023 / E-2023"]
[null,"Automne",null,"crédits",{"$f":"IF(C123<15,C123/3*0.1,C123/15*0.5)","v":{"v":0,"d":"0.0000"}},"ETC","Hiver",null,"crédits",{"$f":"IF(H123<15,H123/3*0.1,H123/15*0.5)","v":{"v":0,"d":"0.0000"}},"ETC"]
[{"$nulls":6},"Été",null,"crédits",{"v":0,"d":"0.0000"},"ETC"]
[]
[]
[{"$nulls":5},"Année 2023-2024"]
[null,"Session 3 ",null,"A-2023",null,null,"Session 4",null,"H-2024 / E-2024"]
[null,"Automne",null,"crédits",{"$f":"IF(C129<15,C129/3*0.1,C129/15*0.5)","v":{"v":0,"d":"0.0000"}},"ETC","Hiver",null,"crédits",{"$f":"IF(H129<15,H129/3*0.1,H129/15*0.5)","v":{"v":0,"d":"0.0000"}},"ETC"]
[{"$nulls":6},"Été",null,"crédits",{"v":0,"d":"0.0000"},"ETC"]
[]
[{"$nulls":4},"Total de crédits :",{"$f":"SUM(C123:C123,H123:H124,C129:C129,H129:H130)","v":0}]
[]
["Nombre de sessions :",{"$f":"COUNTA(C123,H123,C129,H129)","v":0},null,"Nombre total de crédits aux fins de la libération :",null,null,{"$f":"(C123+C129+H123+H129)","v":0},null,"Total ETC visés :",{"$f":"E123+E129+J123+J129","v":{"v":0,"d":"0.0000"}}]
[]
["Note : À titre indicatif, nous présenter votre programme de formation, si différent des modalités ci-dessus."]
[]
[]
["ENGAGEMENT "]
[]
[null,"Je m'engage à fournir une prestation de services à mon collège pour une durée équivalente à la durée du projet de formation en équivalent temps complet (ETC) accordé ou à défaut, rembourser (voir FEC-CSQ clause 7-6.08) et (FNEEQ-CSN clause 7-6.08)."]
[]
["Inscrire nom et prénom de l'enseignante ou de l'enseignant :",{"$nulls":5},"Date :"]
[]
[]
[]
["PARTIE II (À compléter par l'université)"]
[]
["FORMATION POUR L'OBTENTION D'UN DIPLÔME DE MAÎTRISE \n(FEC-CSQ = clause 5-4.20 C) 3e paragraphe, 6-3.01 5e paragraphe et article 7-6.00  / FNEEQ-CSN = clause 5-4.21 C) 4e paragraphe, clause 6-3.01, 4e paragraphe et article 7-6.00)"]
["ATTESTATION DU PROFIL DE MAITRISE DE L'ENSEIGNANTE OU DE L'ENSEIGNANT"]
[]
["Nom de l'enseignante ou de l'enseignant :",null,{"$f":"B13","v":0},null,null,"Prénom :",{"$f":"$F$13","v":0}]
[]
["Programme de maîtrise prévu :",null,{"$f":"B105","v":0},null,null,"Champ de spécialisation :",null,{"$f":"I105","v":0}]
[]
["Nombre de crédits du programme : ",null,{"$f":"C107","v":0},null,null,"Nombre de crédits accumulés et reconnus dans ce programme : ",{"$nulls":3},{"$f":"J107","v":0}]
[]
["Nombre de crédits à compléter :",null,{"$f":"H113","v":0},null,null,"Durée estimée pour l'obtention du diplôme (sessions) :",{"$nulls":3},{"$f":"B134","v":0}]
[]
["Nom de l'université : ",{"$f":"C109","v":0},{"$nulls":3},"**Nom du responsable du programme :"]
[]
[]
[{"$nulls":5},"Année 2022-2023"]
[null,"Session 1",null,"A-2022",null,null,"Session 2",null,"H-2023 / E-2023"]
[null,"Automne",{"$f":"C123","v":0},"crédits",{"$f":"IF(C165<15,C165/3*0.1,C165/15*0.5)","v":{"v":0,"d":"0.0000"}},"ETC","Hiver",{"$f":"H123","v":0},"crédits",{"$f":"IF(H165<15,H165/3*0.1,H165/15*0.5)","v":{"v":0,"d":"0.0000"}},"ETC"]
[{"$nulls":6},"Été",{"$f":"H124","v":0},"crédits",{"v":0,"d":"0.0000"},"ETC"]
[]
[{"$nulls":5},"Année 2023-2024"]
[null,"Session 3",null,"A-2023",null,null,"Session 4",null,"H-2024 / E-2024"]
[null,"Automne",{"$f":"C129","v":0},"crédits",{"$f":"IF(C170<15,C170/3*0.1,C170/15*0.5)","v":{"v":0,"d":"0.0000"}},"ETC","Hiver",{"$f":"H129","v":0},"crédits",{"$f":"IF(H170<15,H170/3*0.1,H170/15*0.5)","v":{"v":0,"d":"0.0000"}},"ETC"]
[{"$nulls":6},"Été",{"$f":"H130","v":0},"crédits",{"v":0,"d":"0.0000"},"ETC"]
[]
[]
["Nombre total de sessions :",null,{"$f":"COUNTA(C123,H123,C129,H129)","v":0},"Nombre total de crédits aux fins de la libération :",null,null,{"$f":"C165+C170+H165+H170","v":0}]
[]
["Joindre lettre explicative de l'université lors de la présentation d'un projet d'études particulier"]
[]
[]
[]
["PARTIE III (À compléter par le collège)"]
[]
["RECYCLAGE VERS POSTE RÉSERVÉ  \n(dans le collège : FEC-CSQ = clause 5-4.20 et FNEEQ-CSN = clause 5-4.21 / dans un autre collège : FEC-CSQ = clause 5-4.21 et FNEEQ-CSN = clause 5-4.22)"]
["MISE EN DISPONIBILITÉ"]
[]
["Date de la mise en disponibilité :",{"$nulls":3},"Raison de la mise en disponibilité :"]
["(1ère année de mise en disponibilité sans interruption)"]
[]
["En cas de substitution, nom de la personne mise en disponibilité :",{"$nulls":4},"Date :"]
[]
[]
["ACCÈS À L'ÉGALITÉ"]
[]
[null,"La demande est-elle recommandée en regard d'une discipline où les femmes sont sous-représentées et en raison d'un programme d'accès à l'égalité?"]
[]
["** Veuillez joindre la recommandation du comité de sélection de la discipline où le poste est réservé et où il est différé, si aucune recommandation n'est jointe la demande de recyclage sera refusée."]
[]
["Veuillez complétez cette section, uniquement si le poste est réservé est dans le MÊME COLLÈGE"]
[]
["Nom de la discipline du poste réservé :",null,null,"Spécialité (s'il y a lieu) :",{"$nulls":3},"Poste réservé différé :"]
[{"$nulls":8},"(Joindre la lettre confirmant la retraite)"]
[]
[]
[]
["RECYCLAGE LIÉ À LA RÉVISION D'UN PROGRAMME OU À UNE RÉORIENTATION DE CARRIÈRE (FEC-CSQ)\n (Pour les collèges FEC-CSQ dont le syndicat était antérieurement affilié à la FAC) \n(FEC-CSQ = clause 5-4.25 de l'Annexe  X-1) uniquement pour les collèges dont le syndicat était antérieurement affilié à la FAC"]
[]
[{"$nulls":4},"Justification du besoin de recyclage en fonction de la révision :"]
["Nom du programme révisé :"]
[]
[]
[]
["Date d'entrée en vigueur :"]
[]
[]
["AVIS DU COLLÈGE SUR LA RECONNAISSANCE DU DIPLÔME DE MAÎTRISE AUX FINS DE RÉMUNÉRATION "]
[]
[null,"Le diplôme de maîtrise sera-t-il reconnu aux fins de rémunération dans la discipline enseignée ou dans une discipline apparentée et utile à l’enseignement de la discipline au contrat de l’enseignante ou l’enseignant?"]
[]
[]
["COMMENTAIRES"]
[]
[]
[]
[]
[]
["PARTIE IV (Signatures de l'université et du collège)"]
["Date : ",{"$nulls":5},"Date :"]
[]
[]
[]
[]
[]
[]
[" 1 - Vous devez cliquer dans la case qui vous concerne et le bloc devient un document word. 2 - Collez votre signature (image) \n3 - Enregistrez votre fichier"]
["À L'USAGE EXCLUSIF DU CPNC"]
[]
["DISCIPLINE :",{"$f":"IF(I11=\"Formation-Maîtrise\",E21&\"   ET       \"&I21,IF(I11=\"Programme révisé ou réorientation de carrière\",C37,\" \"))","v":" "},{"$nulls":4},"TOTAL SESSIONS :  ",null,{"$f":"SUM(J81,B134,F43)","v":0}]
[]
["TOTAL CRÉDITS  :\n      Maîtrise",{"$f":"G134","v":0},{"$nulls":5},"TOTAL ETC VISÉ :",{"$f":"J43+J134+F68+F79+K68+K79","v":{"v":0,"d":"0.0000"}}]
[]
["TOTAL JOURS STAGE :",{"$f":"F64+K64","v":0},{"$nulls":4},"TOTAL HEURES COURS :",null,{"$f":"E77+J77","v":0}]
[]
[]
[]
[]
[{"$nulls":7},"Comité paritaire de placement \nComité patronal de négociation des collèges\nCourriel : cpnc@mes.gouv.qc.ca"]

{"sheet":"Données","index":1,"n_rows":205,"n_cols":32,"rows_kept":205,"hidden":true,"merged":[[54,19,54,23],[54,24,54,28],[61,11,61,15],[61,16,61,20]]}
[null,null,"Choisissez le type de recyclage",{"$nulls":10},"Aucun","Baccalauréat","Choisissez votre statut",null,"OUI",{"$nulls":13},"101        Biologie"]
["Choisissez votre collège"," ","Formation-Maîtrise",{"$nulls":10},"FNEEQ (CSN)","Maitrise","Permanent",null,"NON",{"$nulls":13},"105        Culture scientifique et technologique**"]
["Abitibi-Témiscamingue","FNEEQ-CSN","Programme révisé ou réorientation de carrière",{"$nulls":10},"FEC (CSQ)","Autre","Non permanent",{"$nulls":15},"107        Techniques de la santé"]
["Ahuntsic","FNEEQ-CSN","Poste réservé",{"$nulls":28},"109        Éducation physique"]
["Alma","FNEEQ-CSN",{"$nulls":29},"110        Techniques dentaires"]
["André-Laurendeau","FNEEQ-CSN",{"$nulls":29},"110-01        Prothèses dentaires"]
["Baie-Comeau","FEC-CSQ",{"$nulls":29},"110-02        Denturologie"]
["Beauce-Appalaches","FNEEQ-CSN",{"$nulls":29},"111        Techniques d'hygiène dentaire"]
["Bois-de-Boulogne","FEC-CSQ",{"$nulls":29},"120        Techniques de diététique"]
["Champlain à Lennoxville","FEC-CSQ",{"$nulls":29},"130        Électrophysiologie médicale"]
["Champlain – St. Lawrence","FNEEQ-CSN",{"$nulls":29},"140        Techniques d’analyses biomédicales"]
["Champlain à St-Lambert","FNEEQ-CSN",{"$nulls":29},"141        Techniques d'inhalothérapie "]
["Chicoutimi","FNEEQ-CSN",{"$nulls":29},"142        Techniques de radiologie"]
["Dawson","FNEEQ-CSN",{"$nulls":29},"142-01        Radiodiagnostic"]
["Drummondville","FEC-CSQ",{"$nulls":29},"142-02        Médecine nucléaire"]
["Édouard-Montpetit","FNEEQ-CSN",{"$nulls":29},"142-04         Radio-oncologie"]
["Garneau","FNEEQ-CSN",{"$nulls":29},"144        Techniques de réadaptation"]
["Gaspésie et des Îles","FEC-CSQ",{"$nulls":29},"144-01        Réadaptation physique"]
["Gaspésie et des Îles, \nCEC Îles-Madeleine","FEC-CSQ",{"$nulls":29},"144-03        Orthèses & prothèses orthopédiques"]
["Gaspésie et des Îles, Carleton-sur-mer","FNEEQ-CSN",{"$nulls":29},"145        Technologie des sciences naturelles"]
["Gaspésie et des Îles, ÉPAQ","FNEEQ-CSN",{"$nulls":29},"145-01        Bioécologie"]
["Gérald-Godin","FEC-CSQ",{"$nulls":29},"145-03        Santé animale"]
["Granby ","FNEEQ-CSN",{"$nulls":29},"145-04        Aménagement cynégétique et halieutique"]
["Heritage","FNEEQ-CSN",{"$nulls":29},"147        Milieu naturel"]
["John Abbott","FNEEQ-CSN",{"$nulls":29},"152        Gestion et exploitation d’entreprise agricole"]
["Jonquière","FNEEQ-CSN",{"$nulls":29},"152-01        Zootechnie"]
["La Pocatière","FNEEQ-CSN",{"$nulls":29},"152-02        Phytotechnie"]
["Lévis-Lauzon","FNEEQ-CSN",{"$nulls":29},"153        Techniques horticoles"]
["Limoilou","FNEEQ-CSN",{"$nulls":29},"153-03        Paysage et commercialisation en horticulture ornementale"]
["Lionel-Groulx","FNEEQ-CSN",{"$nulls":29},"153-07        Production horticole et de l’environnement"]
["Maisonneuve","FNEEQ-CSN",{"$nulls":29},"154        Technologie des procédés et de la qualité des aliments"]
["Marie-Victorin","FNEEQ-CSN",{"$nulls":29},"160        Techniques paramédicales"]
["Matane","FEC-CSQ",{"$nulls":29},"160-01        Orthèses visuelles"]
["Montmorency","FNEEQ-CSN",{"$nulls":29},"160-02        Audio-prothèse"]
["Outaouais","FNEEQ-CSN",{"$nulls":29},"171        Techniques de thanatologie"]
["Régional de Lanaudière","FNEEQ-CSN",{"$nulls":29},"180        Soins infirmiers"]
["Rimouski","FEC-CSQ",{"$nulls":29},"181        Soins préhospitaliers d’urgence"]
["Rivière-du-Loup","FEC-CSQ",{"$nulls":29},"190        Technologie forestière"]
["Rosemont","FNEEQ-CSN",{"$nulls":29},"190-02        Technologie forestière"]
["Saint-Jean-sur-Richelieu","FNEEQ-CSN",{"$nulls":29},"190-03        Transformation des produits forestiers"]
["Saint-Jérôme","FNEEQ-CSN",{"$nulls":29},"201        Mathématique"]
["Saint-Laurent","FNEEQ-CSN",{"$nulls":29},"202        Chimie"]
["Sainte-Foy","FEC-CSQ",{"$nulls":29},"203        Physique"]
["Sept-Îles","FNEEQ-CSN",{"$nulls":29},"204        Langage mathématique et informatique*"]
["Shawinigan","FNEEQ-CSN",{"$nulls":29},"205        Géologie"]
["Sherbrooke","FNEEQ-CSN",{"$nulls":29},"210        Techniques de chimie industrielle"]
["Sorel-Tracy","FEC-CSQ",null,null,"Aucune",{"$nulls":26},"210-01        Techniques de laboratoire"]
["St-Félicien","FNEEQ-CSN",null,null,"Surplus de personnel",{"$nulls":26},"210-02        Génie chimique"]
["St-Hyacinthe","FNEEQ-CSN",null,null,"Fermeture d'un programme",{"$nulls":26},"210-04         Procédés chimiques"]
["Thetford","FNEEQ-CSN",null,null,"Suspension d'un programme",{"$nulls":26},"211        Techniques des matières plastiques"]
["Trois-Rivières","FNEEQ-CSN",{"$nulls":29},"221        Technologie du bâtiment et des travaux publics"]
["Valleyfield","FNEEQ-CSN",{"$nulls":29},"221-01        Architecture"]
["Vanier","FNEEQ-CSN",{"$nulls":29},"221-02        Génie civil"]
["Victoriaville","FEC-CSQ",{"$nulls":29},"221-03        Mécanique du bâtiment "]
["Vieux Montréal","FNEEQ-CSN",{"$nulls":17},"Année 2020-2021",{"$nulls":4},"Année 2021-2022",{"$nulls":6},"221-04        Estimation et évaluation"]
[{"$nulls":19},"Automne 2020",null,"Hiver 2021",null,"Été 2021","Automne\n2021",null,"Hiver 2022",null,"Été 2022","Titre du diplôme","Champ de spécialisation","222        Techniques d'aménagement et d’urbanisme"]
[null,"Nom","Prénom","Type de recyclage","Syndicat","Discipline","Permanent ou NP","scolarite","nb experience","echelon","Ancienneté 19-20","Scolarité  05-06 - 09-10 ou 15-16","Échelon  05-06 ou 09-10","Nb de sessions ","Nb de crédits à faire","Valeur demandée\nen ETC","Nbre heures de cours ","Nbre jours de stage","Avis du college","Crédits","ETC","Crédits","ETC","Crédits","Crédits","ETC","Crédits","ETC","Crédits",null,null,"223        Énergie"]
[{"$f":"FORMULAIRE!B11","v":"Choisissez votre collège"},{"$f":"FORMULAIRE!B13","v":0},{"$f":"FORMULAIRE!F13","v":0},{"$f":"FORMULAIRE!I11","v":0},{"$f":"FORMULAIRE!F11","v":" "},{"$f":"FORMULAIRE!B236","v":" "},{"$f":"FORMULAIRE!J13","v":0},{"$f":"FORMULAIRE!E25","v":0},{"$f":"FORMULAIRE!G19","v":0},{"$f":"FORMULAIRE!K19","v":0},{"$f":"FORMULAIRE!C19","v":0},{"$f":"FORMULAIRE!D103","v":0},{"$f":"FORMULAIRE!I103","v":0},{"$f":"FORMULAIRE!I236","v":0},{"$f":"FORMULAIRE!B238","v":0},{"$f":"FORMULAIRE!I238","v":{"v":0,"d":"0.0000"}},{"$f":"FORMULAIRE!I240","v":0},{"$f":"FORMULAIRE!B240","v":0},{"$f":"FORMULAIRE!A216","v":0},{"$f":"FORMULAIRE!C123","v":0},{"$f":"FORMULAIRE!E123","v":0},{"$f":"FORMULAIRE!H123","v":0},{"$f":"FORMULAIRE!J123","v":0},{"$f":"FORMULAIRE!H166","v":0},{"$f":"FORMULAIRE!C129","v":0},{"$f":"FORMULAIRE!E129","v":0},{"$f":"FORMULAIRE!H129","v":0},{"$f":"FORMULAIRE!J129","v":0},{"$f":"FORMULAIRE!H171","v":0},{"$f":"FORMULAIRE!B105","v":0},{"$f":"FORMULAIRE!I105","v":0},"230        Technologie de la géomatique"]
[{"$nulls":31},"231        Techniques de la pêche"]
[{"$nulls":31},"231-01        Aquaculture"]
[{"$nulls":31},"231-03        Transformation des produits de la mer"]
[{"$nulls":31},"232        Technologies des pâtes et papiers"]
[{"$nulls":31},"233        Techniques du meuble et d’ébénisterie"]
[{"$nulls":31},"235        Production industrielle"]
[{"$nulls":31},"235-01        Génie industriel"]
[{"$nulls":31},"235-02        Production pharmaceutique"]
[{"$nulls":31},"241        Techniques de la mécanique"]
[{"$nulls":31},"241-05         Maintenance industrielle"]
[{"$nulls":31},"241-06        Génie mécanique"]
[{"$nulls":31},"241-11        Matériaux composites"]
[{"$nulls":31},"241-12        Transformation des matières plastiques"]
[{"$nulls":31},"242        Dessin technique"]
[{"$nulls":31},"243        Technologie du génie électrique"]
[{"$nulls":31},"243-06        Électronique industrielle"]
[{"$nulls":31},"243-11        Technologie de l’électronique"]
[{"$nulls":31},"243-15        Systèmes ordinés"]
[{"$nulls":31},"243-16        Conception électronique"]
[{"$nulls":31},"244        Technologie physique"]
[{"$nulls":31},"247        Technologie de systèmes"]
[{"$nulls":31},"248        Techniques maritimes"]
[{"$nulls":31},"248-01        Architecture navale"]
[{"$nulls":31},"248-02        Navigation"]
[{"$nulls":31},"248-03        Génie mécanique de marine"]
[{"$nulls":31},"251        Technologie et gestion des textiles"]
[{"$nulls":31},"251-01        Matières textiles"]
[{"$nulls":31},"251-02        Production textile"]
[{"$nulls":31},"260        Techniques de l'eau, de l'air et de l'assainissement"]
[{"$nulls":31},"260-01        Assainissement de l’eau"]
[{"$nulls":31},"260-03        Environnement, hygiène et sécurité au travail"]
[{"$nulls":31},"262        Environnement"]
[{"$nulls":31},"265        Hygiène industrielle"]
[{"$nulls":31},"270        Technologie du génie métallurgique"]
[{"$nulls":31},"271        Technologie minérale"]
[{"$nulls":31},"271-01        Géologie appliquée"]
[{"$nulls":31},"271-02         Exploitation"]
[{"$nulls":31},"271-03        Minéralurgie"]
[{"$nulls":31},"280        Aéronautique"]
[{"$nulls":31},"280-01        Construction aéronautique"]
[{"$nulls":31},"280-02        Pilotage d’aéronefs"]
[{"$nulls":31},"280-03        Maintenance d’aéronefs"]
[{"$nulls":31},"280-04        Avionique"]
[{"$nulls":31},"300        Sciences humaines*"]
[{"$nulls":31},"305        Sciences humaines (complémentaire) *"]
[{"$nulls":31},"310        Techniques auxiliaires de la justice"]
[{"$nulls":31},"310-01        Techniques policières"]
[{"$nulls":31},"310-02        Intervention en délinquance"]
[{"$nulls":31},"310-03        Techniques juridiques"]
[{"$nulls":31},"311        Sécurité incendie"]
[{"$nulls":31},"320        Géographie"]
[{"$nulls":31},"322        Techniques d’éducation à l’enfance"]
[{"$nulls":31},"330        Histoire"]
[{"$nulls":31},"332        Civilisations anciennes"]
[{"$nulls":31},"340        Philosophie"]
[{"$nulls":31},"345        Humanities"]
[{"$nulls":31},"350        Psychologie"]
[{"$nulls":31},"351        Techniques d'éducation spécialisée"]
[{"$nulls":31},"352        Techniques de gérontologie"]
[{"$nulls":31},"353        Techniques d'accueil"]
[{"$nulls":31},"354        Techniques d'animation"]
[{"$nulls":31},"360        Multidisciplinaire*"]
[{"$nulls":31},"370        Science des religions"]
[{"$nulls":31},"371        Pastorale"]
[{"$nulls":31},"381        Anthropologie"]
[{"$nulls":31},"383        Économique"]
[{"$nulls":31},"384        Techniques de recherche sociale"]
[{"$nulls":31},"385        Science politique"]
[{"$nulls":31},"386        Organisation communautaire"]
[{"$nulls":31},"387        Sociologie"]
[{"$nulls":31},"388        Techniques de travail social"]
[{"$nulls":31},"391        Techniques d’intervention en loisir"]
[{"$nulls":31},"393        Techniques de la documentation"]
[{"$nulls":31},"394        Relations publiques"]
[{"$nulls":31},"401        Administration"]
[{"$nulls":31},"410        Techniques administratives"]
[{"$nulls":31},"410-01        Gestion de commerces"]
[{"$nulls":31},"410-07        Logistique du transport"]
[{"$nulls":31},"410-08        Comptabilité et gestion"]
[{"$nulls":31},"410-15        Conseil en assurances et en services financiers"]
[{"$nulls":31},"411        Archives médicales"]
[{"$nulls":31},"412        Techniques de bureautique"]
[{"$nulls":31},"413        Coopération"]
[{"$nulls":31},"414        Techniques de tourisme"]
[{"$nulls":31},"414-01        Tourisme"]
[{"$nulls":31},"414-02        Tourisme d’aventure"]
[{"$nulls":31},"415        Techniques administratives (2)"]
[{"$nulls":31},"420        Techniques de l’informatique"]
[{"$nulls":31},"420-01        Informatique "]
[{"$nulls":31},"420-02        Informatique industrielle"]
[{"$nulls":31},"430        Techniques de gestion hôtelière et des services alimentaires"]
[{"$nulls":31},"430-01        Gestion hôtelière"]
[{"$nulls":31},"430-02        Gestion d’un établissement de restauration"]
[{"$nulls":31},"500        Arts*"]
[{"$nulls":31},"502        Arts et lettres*"]
[{"$nulls":31},"504        Art et esthétique*"]
[{"$nulls":31},"506        Danse"]
[{"$nulls":31},"510        Arts plastiques"]
[{"$nulls":31},"511        Arts plastiques"]
[{"$nulls":31},"520        Esthétique et histoire de l'art"]
[{"$nulls":31},"530        Cinéma"]
[{"$nulls":31},"550        Musique"]
[{"$nulls":31},"551        Techniques professionnelles de musique et chanson"]
[{"$nulls":31},"560        Théâtre"]
[{"$nulls":31},"561        Théâtre professionnel"]
[{"$nulls":31},"561-01        Interprétation théâtrale"]
[{"$nulls":31},"561-02        Théâtre - Production"]
[{"$nulls":31},"561-06        Danse-Interprétation"]
[{"$nulls":31},"570        Arts appliqués"]
[{"$nulls":31},"570-02        Design de présentation"]
[{"$nulls":31},"570-03        Design d’intérieur"]
[{"$nulls":31},"570-04        Photographie"]
[{"$nulls":31},"570-06        Graphisme"]
[{"$nulls":31},"570-07        Design industriel"]
[{"$nulls":31},"570-09        Muséologie"]
[{"$nulls":31},"571        Industrie de la mode"]
[{"$nulls":31},"571-03        Gestion de la production du vêtement"]
[{"$nulls":31},"571-04        Commercialisation de la mode"]
[{"$nulls":31},"571-07        Design de la mode"]
[{"$nulls":31},"573        Métiers d'art"]
[{"$nulls":31},"574        Dessin animé"]
[{"$nulls":31},"581        Communications graphiques"]
[{"$nulls":31},"581-01        Gestion de projet en communications graphiques"]
[{"$nulls":31},"581-04        Impression"]
[{"$nulls":31},"581-07        Infographie en préimpression"]
[{"$nulls":31},"582        Techniques d’intégration multimédia"]
[{"$nulls":31},"585        Communication (préuniversitaire)"]
[{"$nulls":31},"589        Techniques des communications"]
[{"$nulls":31},"589-01        Communication dans les médias"]
[{"$nulls":31},"589-02         Production et postproduction télévisuelles"]
[{"$nulls":31},"601        Français (langue et littérature)"]
[{"$nulls":31},"602        Français (langue seconde)"]
[{"$nulls":31},"603        Anglais (langue et littérature)"]
[{"$nulls":31},"604        Anglais (langue seconde)"]
[{"$nulls":31},"607        Espagnol"]
[{"$nulls":31},"608        Italien"]
[{"$nulls":31},"609        Allemand"]
[{"$nulls":31},"610        Russe"]
[{"$nulls":31},"611        Hébreu"]
[{"$nulls":31},"612        Yiddish"]
[{"$nulls":31},"613        Chinois"]
[{"$nulls":31},"614        Langues autochtones"]
[{"$nulls":31},"615        Langues anciennes"]
[{"$nulls":31},"616        Arabe"]
[{"$nulls":31},"617        Langue des signes québécoise"]
[{"$nulls":31},"618        Langue moderne"]
[{"$nulls":31},"620        Sciences de la parole"]

{"sheet":"Feuil3","index":2,"n_rows":48,"n_cols":4,"rows_kept":48,"hidden":true}
["Abitibi Témiscamingue",920000,null,{"$f":"B1&\"  \"&A1","v":"920000  Abitibi Témiscamingue"}]
["Ahuntsic",913000,null,"913000  Ahuntsic"]
["Alma",932001,null,"932001  Alma"]
["André-Laurendeau",929000,null,"929000  André-Laurendeau"]
["Baie-Comeau",931001,null,"931001  Baie-Comeau"]
["Beauce-Appalaches",937000,null,"937000  Beauce-Appalaches"]
["Bois de Boulogne",914000,null,"914000  Bois de Boulogne"]
["Champlain Regional College ",936000,null,"936000  Champlain Regional College "]
["Chicoutimi",932002,null,"932002  Chicoutimi"]
["Dawson",933000,null,"933000  Dawson"]
["Drummondville",907001,null,"907001  Drummondville"]
["Édouard Montpetit",909000,null,"909000  Édouard Montpetit"]
["François Xavier Garneau",926000,null,"926000  François Xavier Garneau"]
["Gaspésie et des Îles, Gaspé",900000,null,"900000  Gaspésie et des Îles, Gaspé"]
["Gérald Godin",939000,null,"939000  Gérald Godin"]
["Granby - Haute Yamaska",904001,null,"904001  Granby - Haute Yamaska"]
["Heritage",919001,null,"919001  Heritage"]
["John Abbott",935000,null,"935000  John Abbott"]
["Jonquière",932003,null,"932003  Jonquière"]
["La Pocatière",923000,null,"923000  La Pocatière"]
["Lévis Lauzon",921000,null,{"$f":"B21&\"  \"&A21","v":"921000  Lévis Lauzon"}]
["Limoilou",902000,null,{"$f":"B22&\"  \"&A22","v":"902000  Limoilou"}]
["Lionel Groulx",911000,null,"911000  Lionel Groulx"]
["Maisonneuve",916000,null,"916000  Maisonneuve"]
["Marie-Victorin",938000,null,"938000  Marie-Victorin"]
["Matane",927000,null,"927000  Matane"]
["Montmorency",930000,null,"930000  Montmorency"]
["Outaouais",919000,null,"919000  Outaouais"]
["Régional de Lanaudière",940000,null,"940000  Régional de Lanaudière"]
["Rimouski",901000,null,"901000  Rimouski"]
["Rivière du Loup",922000,null,"922000  Rivière du Loup"]
["Rosemont",915000,null,"915000  Rosemont"]
["Saint Jean sur Richelieu",908000,null,"908000  Saint Jean sur Richelieu"]
["Saint Jérôme",928000,null,"928000  Saint Jérôme"]
["Saint Laurent",912000,null,"912000  Saint Laurent"]
["Sainte-Foy",903000,null,"903000  Sainte-Foy"]
["Sept-Îles",931002,null,"931002  Sept-Îles"]
["Shawinigan",906000,null,"906000  Shawinigan"]
["Sherbrooke",904000,null,"904000  Sherbrooke"]
["Sorel-Tracy",907002,null,"907002  Sorel-Tracy"]
["St-Félicien",932004,null,"932004  St-Félicien"]
["St-Hyacinthe",907003,null,"907003  St-Hyacinthe"]
["Thetford- Région de l'Amiante ",924000,null,"924000  Thetford- Région de l'Amiante "]
["Trois-Rivières",905000,null,"905000  Trois-Rivières"]
["Valleyfield",918000,null,"918000  Valleyfield"]
["Vanier",934000,null,"934000  Vanier"]
["Victoriaville",925000,null,"925000  Victoriaville"]
["Vieux-Montréal",917000,null,{"$f":"B48&\"  \"&A48","v":"917000  Vieux-Montréal"}]

{"sheet":"DOCUMENTATION","index":3,"n_rows":20,"n_cols":10,"rows_kept":20,"merged":[[2,0,2,11],[14,1,14,8]]}
[]
[]
["VOUS DEVEZ ENREGISTRER LE FICHIER AVANT DE COMMENCER L'ENTRÉE DES DONNÉES."]
{"$rows_empty":8}
[{"$nulls":3},"Guide du formulaire 2022-2023",null,null,"Liste des programmes révisés- FEC 2022"]
[]
[]
[null,"DOUBLE-CLIQUEZ SUR LES FICHIERS \nCI-DESSUS ET LISEZ ATTENTIVEMENT LES DIRECTIVES \nDU GUIDE AVANT DE REMPLIR\n LE FORMULAIRE"]
[]
[]
[]
[]
[{"$nulls":9}," "]